[Event "Titled Tuesday Blitz February 14 Early 2023"]
[White "Turzo, Attila"]
[Black "Alahakoon, Isuru"]
[WhiteFideId "704954"]
[BlackFideId "9900993"]
[WhiteElo "2279"]
[BlackElo "1819"]
[Result "1-0"]
[Round "02"]
[TimeControl "180+2"]
[Date "2023.02.15"]
[WhiteClock "0:00:14"]
[BlackClock "0:00:14"]

1. d4 {[%clk 0:02:55]}  d5 {[%clk 0:02:59]} 2. c4 {[%clk 0:02:54]}  e6 {[%clk 0:03:00]} 3. Nf3 {[%clk 0:02:53]}  Nf6 {[%clk 0:03:00]} 4. Nc3 {[%clk 0:02:54]}  c6 {[%clk 0:02:57]} 5. e3 {[%clk 0:02:53]}  Bd6 {[%clk 0:02:56]} 6. Be2 {[%clk 0:02:50]}  O-O {[%clk 0:02:55]} 7. O-O {[%clk 0:02:50]}  Nbd7 {[%clk 0:02:55]} 8. b3 {[%clk 0:02:47]}  Qe7 {[%clk 0:02:53]} 9. Bb2 {[%clk 0:02:47]}  b6 {[%clk 0:02:52]} 10. Bd3 {[%clk 0:02:45]}  e5 {[%clk 0:02:49]} 11. dxe5 {[%clk 0:02:27]}  Nxe5 {[%clk 0:02:49]} 12. cxd5 {[%clk 0:02:21]}  Nxf3+ {[%clk 0:02:38]} 13. gxf3 {[%clk 0:02:21]}  Bh3 {[%clk 0:02:34]} 14. Re1 {[%clk 0:02:19]}  Nxd5 {[%clk 0:02:28]} 15. f4 {[%clk 0:02:14]}  Qh4 {[%clk 0:02:13]} 16. Nxd5 {[%clk 0:02:05]}  cxd5 {[%clk 0:02:14]} 17. Qf3 {[%clk 0:02:03]}  Rfe8 {[%clk 0:02:03]} 18. Qg3 {[%clk 0:02:01]}  Qh6 {[%clk 0:02:00]} 19. Kh1 {[%clk 0:01:52]}  f6 {[%clk 0:01:52]} 20. Be2 {[%clk 0:01:42]}  Kh8 {[%clk 0:01:47]} 21. Bf3 {[%clk 0:01:40]}  Rac8 {[%clk 0:01:38]} 22. Rac1 {[%clk 0:01:36]}  d4 {[%clk 0:01:25]} 23. Bxd4 {[%clk 0:01:28]}  Ba3 {[%clk 0:01:21]} 24. Rxc8 {[%clk 0:01:23]}  Rxc8 {[%clk 0:01:22]} 25. Bg4 {[%clk 0:01:18]}  Bxg4 {[%clk 0:01:19]} 26. Qxg4 {[%clk 0:01:19]}  Rd8 {[%clk 0:00:58]} 27. Rg1 {[%clk 0:01:13]}  Bc5 {[%clk 0:00:54]} 28. Bxc5 {[%clk 0:01:06]}  bxc5 {[%clk 0:00:55]} 29. Rd1 {[%clk 0:01:02]}  Re8 {[%clk 0:00:39]} 30. Rd7 {[%clk 0:00:48]}  g6 {[%clk 0:00:36]} 31. Kg2 {[%clk 0:00:36]}  f5 {[%clk 0:00:35]} 32. Qg5 {[%clk 0:00:30]}  Qxg5+ {[%clk 0:00:31]} 33. fxg5 {[%clk 0:00:31]}  a6 {[%clk 0:00:23]} 34. Ra7 {[%clk 0:00:22]}  Re6 {[%clk 0:00:23]} 35. Rc7 {[%clk 0:00:19]}  Re5 {[%clk 0:00:23]} 36. Rc6 {[%clk 0:00:18]}  c4 {[%clk 0:00:23]} 37. Rxc4 {[%clk 0:00:17]}  Ra5 {[%clk 0:00:23]} 38. a4 {[%clk 0:00:17]}  Re5 {[%clk 0:00:23]} 39. Kf3 {[%clk 0:00:17]}  a5 {[%clk 0:00:23]} 40. b4 {[%clk 0:00:16]}  axb4 {[%clk 0:00:23]} 41. Rxb4 {[%clk 0:00:17]}  Kg7 {[%clk 0:00:23]} 42. Kf4 {[%clk 0:00:17]}  Ra5 {[%clk 0:00:22]} 43. f3 {[%clk 0:00:18]}  Kf7 {[%clk 0:00:20]} 44. e4 {[%clk 0:00:17]}  fxe4 {[%clk 0:00:20]} 45. fxe4 {[%clk 0:00:18]}  Ke6 {[%clk 0:00:19]} 46. h4 {[%clk 0:00:19]}  Ra6 {[%clk 0:00:18]} 47. Ke3 {[%clk 0:00:18]}  Ra5 {[%clk 0:00:18]} 48. Rb6+ {[%clk 0:00:17]}  Kf7 {[%clk 0:00:16]} 49. Rb7+ {[%clk 0:00:17]}  Ke6 {[%clk 0:00:17]} 50. Rxh7 {[%clk 0:00:17]}  Rxa4 {[%clk 0:00:17]} 51. Rg7 {[%clk 0:00:17]}  Ke5 {[%clk 0:00:17]} 52. Re7+ {[%clk 0:00:16]}  Kd6 {[%clk 0:00:17]} 53. Re8 {[%clk 0:00:16]}  Ra3+ {[%clk 0:00:16]} 54. Kf4 {[%clk 0:00:16]}  Ra2 {[%clk 0:00:17]} 55. Rg8 {[%clk 0:00:16]}  Rf2+ {[%clk 0:00:14]} 56. Kg3 {[%clk 0:00:17]}  Re2 {[%clk 0:00:14]} 57. Rxg6+ {[%clk 0:00:17]}  Ke5 {[%clk 0:00:15]} 58. Kg4 {[%clk 0:00:16]}  Rg2+ {[%clk 0:00:14]} 59. Kh5 {[%clk 0:00:16]}  Rh2 {[%clk 0:00:15]} 60. Rg8 {[%clk 0:00:16]}  Kxe4 {[%clk 0:00:14]} 61. Rf8 {[%clk 0:00:16]}  Rg2 {[%clk 0:00:13]} 62. g6 {[%clk 0:00:15]}  Ke5 {[%clk 0:00:13]} 63. Kh6 {[%clk 0:00:15]}  Ke6 {[%clk 0:00:13]} 64. h5 {[%clk 0:00:15]}  Ke7 {[%clk 0:00:14]} 65. g7 {[%clk 0:00:14]} 1-0


[Site "https://www.chess.com"]

[Event "Titled Tuesday Blitz February 14 Early 2023"]
[White "Andreev, Konstantin"]
[Black "Cueto, Jonny"]
[WhiteFideId "24239305"]
[BlackFideId "3300145"]
[WhiteElo "2195"]
[BlackElo "2122"]
[Result "1-0"]
[Round "02"]
[TimeControl "180+2"]
[Date "2023.02.15"]
[WhiteClock "0:00:40"]
[BlackClock "0:00:02"]

1. e4 {[%clk 0:03:00]}  e6 {[%clk 0:02:57]} 2. d4 {[%clk 0:03:00]}  d5 {[%clk 0:02:57]} 3. Nc3 {[%clk 0:03:01]}  Nf6 {[%clk 0:02:57]} 4. e5 {[%clk 0:03:01]}  Nfd7 {[%clk 0:02:49]} 5. f4 {[%clk 0:03:01]}  c5 {[%clk 0:02:49]} 6. Nf3 {[%clk 0:03:02]}  Nc6 {[%clk 0:02:49]} 7. Be3 {[%clk 0:03:02]}  Be7 {[%clk 0:02:48]} 8. Qd2 {[%clk 0:03:02]}  O-O {[%clk 0:02:48]} 9. a3 {[%clk 0:03:02]}  a6 {[%clk 0:02:45]} 10. Be2 {[%clk 0:03:01]}  cxd4 {[%clk 0:02:39]} 11. Nxd4 {[%clk 0:03:00]}  f6 {[%clk 0:02:38]} 12. exf6 {[%clk 0:03:00]}  Nxf6 {[%clk 0:02:35]} 13. O-O {[%clk 0:02:59]}  Qc7 {[%clk 0:02:21]} 14. Rad1 {[%clk 0:02:51]}  Bd7 {[%clk 0:02:06]} 15. Rfe1 {[%clk 0:02:46]}  Rac8 {[%clk 0:02:04]} 16. Bf3 {[%clk 0:02:42]}  Na5 {[%clk 0:01:46]} 17. Qd3 {[%clk 0:02:20]}  Nc4 {[%clk 0:01:07]} 18. Bc1 {[%clk 0:02:12]}  Bc5 {[%clk 0:00:56]} 19. Kh1 {[%clk 0:02:08]}  Qb6 {[%clk 0:00:54]} 20. Nb3 {[%clk 0:01:52]}  Bd6 {[%clk 0:00:42]} 21. f5 {[%clk 0:01:48]}  Ne5 {[%clk 0:00:31]} 22. Qe2 {[%clk 0:01:45]}  Nxf3 {[%clk 0:00:29]} 23. Qxf3 {[%clk 0:01:45]}  exf5 {[%clk 0:00:11]} 24. Nxd5 {[%clk 0:01:43]}  Qc6 {[%clk 0:00:10]} 25. Na5 {[%clk 0:00:54]}  Qc5 {[%clk 0:00:06]} 26. Nxb7 {[%clk 0:00:51]}  Qa7 {[%clk 0:00:03]} 27. Nxd6 {[%clk 0:00:49]}  Rcd8 {[%clk 0:00:02]} 28. Nxf6+ {[%clk 0:00:46]}  Rxf6 {[%clk 0:00:02]} 29. Bg5 {[%clk 0:00:46]}  Rxd6 {[%clk 0:00:02]} 30. Rxd6 {[%clk 0:00:44]}  Re8 {[%clk 0:00:02]} 31. Qd5+ {[%clk 0:00:40]} 1-0


[Site "https://www.chess.com"]

[Event "Titled Tuesday Blitz February 14 Early 2023"]
[White "Orujov, Elshad"]
[Black "Degenbaev, Aziz"]
[WhiteFideId "13403540"]
[BlackFideId "13802640"]
[WhiteElo "2304"]
[BlackElo "2203"]
[Result "0-1"]
[Round "02"]
[TimeControl "180+2"]
[Date "2023.02.15"]
[WhiteClock "0:00:11"]
[BlackClock "0:00:06"]

1. e4 {[%clk 0:03:00]}  c5 {[%clk 0:02:54]} 2. Nf3 {[%clk 0:03:00]}  d6 {[%clk 0:02:55]} 3. d4 {[%clk 0:03:00]}  cxd4 {[%clk 0:02:56]} 4. Nxd4 {[%clk 0:03:01]}  Nf6 {[%clk 0:02:57]} 5. Nc3 {[%clk 0:03:02]}  a6 {[%clk 0:02:57]} 6. h3 {[%clk 0:03:02]}  e5 {[%clk 0:02:56]} 7. Nde2 {[%clk 0:03:02]}  h5 {[%clk 0:02:56]} 8. Bg5 {[%clk 0:03:02]}  Be7 {[%clk 0:02:52]} 9. Bxf6 {[%clk 0:03:02]}  Bxf6 {[%clk 0:02:52]} 10. Nd5 {[%clk 0:03:02]}  Bg5 {[%clk 0:02:46]} 11. Nec3 {[%clk 0:03:03]}  Nc6 {[%clk 0:02:34]} 12. Bc4 {[%clk 0:03:02]}  Be6 {[%clk 0:02:27]} 13. O-O {[%clk 0:03:01]}  h4 {[%clk 0:02:04]} 14. Bb3 {[%clk 0:03:01]}  O-O {[%clk 0:02:02]} 15. Qd3 {[%clk 0:03:00]}  Bh6 {[%clk 0:01:56]} 16. Ne3 {[%clk 0:02:56]}  Nd4 {[%clk 0:01:53]} 17. Ncd5 {[%clk 0:02:43]}  Qg5 {[%clk 0:01:13]} 18. Kh1 {[%clk 0:02:26]}  Qh5 {[%clk 0:01:04]} 19. c3 {[%clk 0:02:03]}  Nxb3 {[%clk 0:01:03]} 20. axb3 {[%clk 0:02:03]}  Rad8 {[%clk 0:01:03]} 21. Rad1 {[%clk 0:01:52]}  Kh8 {[%clk 0:01:01]} 22. b4 {[%clk 0:01:46]}  Bd7 {[%clk 0:00:32]} 23. c4 {[%clk 0:01:41]}  Rfe8 {[%clk 0:00:27]} 24. b3 {[%clk 0:01:41]}  Re6 {[%clk 0:00:28]} 25. Nf5 {[%clk 0:01:34]}  Rg6 {[%clk 0:00:27]} 26. Nxh6 {[%clk 0:01:19]}  Qxh6 {[%clk 0:00:26]} 27. Qe3 {[%clk 0:01:17]}  Qh5 {[%clk 0:00:25]} 28. Rd2 {[%clk 0:01:12]}  Bc6 {[%clk 0:00:23]} 29. Rfd1 {[%clk 0:01:12]}  Bxd5 {[%clk 0:00:23]} 30. Rxd5 {[%clk 0:01:12]}  Rf6 {[%clk 0:00:23]} 31. c5 {[%clk 0:01:05]}  Qg6 {[%clk 0:00:19]} 32. Qd2 {[%clk 0:00:54]}  Qxe4 {[%clk 0:00:17]} 33. cxd6 {[%clk 0:00:54]}  Rg6 {[%clk 0:00:15]} 34. f3 {[%clk 0:00:54]}  Qf5 {[%clk 0:00:15]} 35. d7 {[%clk 0:00:53]}  Rg3 {[%clk 0:00:15]} 36. Rc5 {[%clk 0:00:38]}  Rxh3+ {[%clk 0:00:11]} 37. gxh3 {[%clk 0:00:36]}  Qxh3+ {[%clk 0:00:11]} 38. Kg1 {[%clk 0:00:36]}  Rxd7 {[%clk 0:00:05]} 39. Rc8+ {[%clk 0:00:17]}  Kh7 {[%clk 0:00:05]} 40. Qxd7 {[%clk 0:00:09]}  Qg3+ {[%clk 0:00:05]} 41. Kh1 {[%clk 0:00:10]}  Qxf3+ {[%clk 0:00:05]} 42. Kh2 {[%clk 0:00:10]}  Qf2+ {[%clk 0:00:05]} 43. Kh3 {[%clk 0:00:11]}  Qg3# {[%clk 0:00:06]} 0-1


[Site "https://www.chess.com"]

[Event "Titled Tuesday Blitz February 14 Early 2023"]
[White "Kochetov, Andrey"]
[Black "Gharamian, Tigran"]
[WhiteFideId "24130532"]
[BlackFideId "13301527"]
[WhiteElo "2165"]
[BlackElo "2601"]
[Result "1-0"]
[Round "02"]
[TimeControl "180+2"]
[Date "2023.02.15"]
[WhiteClock "0:01:16"]
[BlackClock "0:00:19"]

1. e4 {[%clk 0:03:00]}  c6 {[%clk 0:02:54]} 2. d4 {[%clk 0:03:00]}  d5 {[%clk 0:02:54]} 3. Nc3 {[%clk 0:03:01]}  dxe4 {[%clk 0:02:53]} 4. Nxe4 {[%clk 0:03:02]}  Nf6 {[%clk 0:02:54]} 5. Nxf6+ {[%clk 0:03:02]}  exf6 {[%clk 0:02:54]} 6. c3 {[%clk 0:03:01]}  Bd6 {[%clk 0:02:54]} 7. Bd3 {[%clk 0:03:01]}  O-O {[%clk 0:02:54]} 8. Ne2 {[%clk 0:03:01]}  Re8 {[%clk 0:02:53]} 9. O-O {[%clk 0:03:01]}  Nd7 {[%clk 0:02:50]} 10. f4 {[%clk 0:03:02]}  Nf8 {[%clk 0:02:04]} 11. Ng3 {[%clk 0:02:42]}  c5 {[%clk 0:01:45]} 12. d5 {[%clk 0:02:28]}  f5 {[%clk 0:01:33]} 13. Nxf5 {[%clk 0:02:05]}  Bxf5 {[%clk 0:01:19]} 14. Bxf5 {[%clk 0:02:06]}  Qf6 {[%clk 0:01:19]} 15. Bd3 {[%clk 0:01:50]}  Ng6 {[%clk 0:01:15]} 16. Qf3 {[%clk 0:01:41]}  Nh4 {[%clk 0:00:51]} 17. Qg4 {[%clk 0:01:41]}  Re7 {[%clk 0:00:25]} 18. f5 {[%clk 0:01:20]}  Rae8 {[%clk 0:00:19]} 19. Bg5 {[%clk 0:01:16]} 1-0


[Site "https://www.chess.com"]

[Event "Titled Tuesday Blitz February 14 Early 2023"]
[White "Hrabinska, Myroslava"]
[Black "Ponce Cano, Adrian"]
[WhiteFideId "14109190"]
[BlackFideId "22296913"]
[WhiteElo "2210"]
[BlackElo "2210"]
[Result "0-1"]
[Round "02"]
[TimeControl "180+2"]
[Date "2023.02.15"]
[WhiteClock "0:00:02"]
[BlackClock "0:01:29"]

1. e4 {[%clk 0:02:58]}  c5 {[%clk 0:02:59]} 2. b4 {[%clk 0:02:57]}  b6 {[%clk 0:02:56]} 3. bxc5 {[%clk 0:02:55]}  bxc5 {[%clk 0:02:57]} 4. Nc3 {[%clk 0:02:55]}  Nc6 {[%clk 0:02:57]} 5. Rb1 {[%clk 0:02:54]}  g6 {[%clk 0:02:56]} 6. Bc4 {[%clk 0:02:52]}  Bg7 {[%clk 0:02:56]} 7. Nf3 {[%clk 0:02:51]}  e6 {[%clk 0:02:55]} 8. O-O {[%clk 0:02:25]}  Nge7 {[%clk 0:02:53]} 9. Re1 {[%clk 0:02:08]}  O-O {[%clk 0:02:44]} 10. e5 {[%clk 0:01:55]}  Qc7 {[%clk 0:02:42]} 11. Nb5 {[%clk 0:01:53]}  Qd8 {[%clk 0:02:38]} 12. Ba3 {[%clk 0:01:47]}  a6 {[%clk 0:02:33]} 13. Nd6 {[%clk 0:01:45]}  Qc7 {[%clk 0:02:29]} 14. Nxc8 {[%clk 0:01:37]}  Raxc8 {[%clk 0:02:27]} 15. Bxc5 {[%clk 0:01:23]}  Rfe8 {[%clk 0:02:27]} 16. Bd6 {[%clk 0:01:21]}  Qa5 {[%clk 0:02:26]} 17. d4 {[%clk 0:01:14]}  Nf5 {[%clk 0:02:26]} 18. Bc5 {[%clk 0:00:45]}  Ncxd4 {[%clk 0:02:17]} 19. Bb6 {[%clk 0:00:42]}  Nxf3+ {[%clk 0:02:16]} 20. Qxf3 {[%clk 0:00:32]}  Qd2 {[%clk 0:02:16]} 21. Bxa6 {[%clk 0:00:25]}  Rxc2 {[%clk 0:02:10]} 22. Red1 {[%clk 0:00:22]}  Qg5 {[%clk 0:02:05]} 23. Re1 {[%clk 0:00:19]}  h5 {[%clk 0:01:46]} 24. Bb5 {[%clk 0:00:17]}  Rxa2 {[%clk 0:01:44]} 25. Bxd7 {[%clk 0:00:16]}  Rb8 {[%clk 0:01:43]} 26. Bc7 {[%clk 0:00:15]}  Rxb1 {[%clk 0:01:43]} 27. Rxb1 {[%clk 0:00:16]}  Nd4 {[%clk 0:01:41]} 28. Qe4 {[%clk 0:00:13]}  Ne2+ {[%clk 0:01:38]} 29. Kh1 {[%clk 0:00:11]}  Nf4 {[%clk 0:01:39]} 30. Bd6 {[%clk 0:00:10]}  Re2 {[%clk 0:01:35]} 31. Qf3 {[%clk 0:00:09]}  Rc2 {[%clk 0:01:33]} 32. g3 {[%clk 0:00:08]}  Nd5 {[%clk 0:01:31]} 33. Bc6 {[%clk 0:00:06]}  Rc1+ {[%clk 0:01:31]} 34. Rxc1 {[%clk 0:00:06]}  Qxc1+ {[%clk 0:01:32]} 35. Kg2 {[%clk 0:00:06]}  Qxc6 {[%clk 0:01:33]} 36. h4 {[%clk 0:00:02]}  Kh7 {[%clk 0:01:29]} 0-1


[Site "https://www.chess.com"]

[Event "Titled Tuesday Blitz February 14 Early 2023"]
[White "Mendez Machado, Andre"]
[Black "Kanyamarala, Tarun"]
[WhiteFideId "6603793"]
[BlackFideId "45004714"]
[WhiteElo "1974"]
[BlackElo "2342"]
[Result "0-1"]
[Round "02"]
[TimeControl "180+2"]
[Date "2023.02.15"]
[WhiteClock "0:00:12"]
[BlackClock "0:01:59"]

1. e4 {[%clk 0:02:55]}  c6 {[%clk 0:02:59]} 2. d4 {[%clk 0:02:54]}  d5 {[%clk 0:02:59]} 3. f3 {[%clk 0:02:55]}  e6 {[%clk 0:02:58]} 4. Nc3 {[%clk 0:02:54]}  Bb4 {[%clk 0:02:53]} 5. Bd2 {[%clk 0:02:54]}  Ne7 {[%clk 0:02:53]} 6. a3 {[%clk 0:02:44]}  Ba5 {[%clk 0:02:52]} 7. Bd3 {[%clk 0:02:25]}  dxe4 {[%clk 0:02:47]} 8. fxe4 {[%clk 0:02:16]}  Qxd4 {[%clk 0:02:46]} 9. Nf3 {[%clk 0:02:16]}  Qd8 {[%clk 0:02:44]} 10. O-O {[%clk 0:02:15]}  O-O {[%clk 0:02:43]} 11. e5 {[%clk 0:02:07]}  Nf5 {[%clk 0:02:39]} 12. g4 {[%clk 0:01:45]}  Nd4 {[%clk 0:02:36]} 13. Ng5 {[%clk 0:01:28]}  h6 {[%clk 0:02:32]} 14. Nh7 {[%clk 0:01:10]}  Re8 {[%clk 0:02:27]} 15. g5 {[%clk 0:01:01]}  Nf5 {[%clk 0:02:27]} 16. gxh6 {[%clk 0:00:25]}  Kxh7 {[%clk 0:02:21]} 17. hxg7 {[%clk 0:00:20]}  Qh4 {[%clk 0:02:06]} 18. Bxf5+ {[%clk 0:00:17]}  exf5 {[%clk 0:02:05]} 19. Kh1 {[%clk 0:00:17]}  Bxc3 {[%clk 0:01:59]} 20. Bxc3 {[%clk 0:00:16]}  Be6 {[%clk 0:02:00]} 21. Qf3 {[%clk 0:00:12]}  Bd5 {[%clk 0:01:59]} 0-1


[Site "https://www.chess.com"]

[Event "Titled Tuesday Blitz February 14 Early 2023"]
[White "surrenderPLS"]
[Black "Smith, Garrett L"]
[BlackFideId "2024829"]
[WhiteElo "2491"]
[BlackElo "2047"]
[Result "1-0"]
[Round "02"]
[TimeControl "180+2"]
[Date "2023.02.15"]
[WhiteClock "0:01:27"]
[BlackClock "0:00:50"]

1. e4 {[%clk 0:02:59]}  c5 {[%clk 0:02:59]} 2. Nf3 {[%clk 0:02:59]}  Nc6 {[%clk 0:02:59]} 3. Nc3 {[%clk 0:02:58]}  e5 {[%clk 0:02:59]} 4. g3 {[%clk 0:02:57]}  Nf6 {[%clk 0:02:55]} 5. Bg2 {[%clk 0:02:56]}  Be7 {[%clk 0:02:52]} 6. O-O {[%clk 0:02:56]}  d6 {[%clk 0:02:52]} 7. d3 {[%clk 0:02:51]}  h6 {[%clk 0:02:52]} 8. Nh4 {[%clk 0:02:51]}  O-O {[%clk 0:02:50]} 9. Nf5 {[%clk 0:02:49]}  Nd4 {[%clk 0:02:40]} 10. g4 {[%clk 0:02:41]}  Be6 {[%clk 0:02:21]} 11. h3 {[%clk 0:02:30]}  Rb8 {[%clk 0:02:11]} 12. a4 {[%clk 0:02:27]}  Nh7 {[%clk 0:01:58]} 13. Ne2 {[%clk 0:02:25]}  Bg5 {[%clk 0:01:47]} 14. f4 {[%clk 0:02:13]}  Nxe2+ {[%clk 0:01:43]} 15. Qxe2 {[%clk 0:02:11]}  Bxf4 {[%clk 0:01:43]} 16. Bxf4 {[%clk 0:02:09]}  exf4 {[%clk 0:01:44]} 17. Rxf4 {[%clk 0:02:08]}  Qf6 {[%clk 0:01:35]} 18. c3 {[%clk 0:01:57]}  Rfd8 {[%clk 0:01:20]} 19. Raf1 {[%clk 0:01:56]}  Qe5 {[%clk 0:01:11]} 20. d4 {[%clk 0:01:50]}  cxd4 {[%clk 0:01:11]} 21. cxd4 {[%clk 0:01:50]}  Qa5 {[%clk 0:01:11]} 22. Ne7+ {[%clk 0:01:43]}  Kh8 {[%clk 0:01:10]} 23. d5 {[%clk 0:01:43]}  Bd7 {[%clk 0:01:05]} 24. Rxf7 {[%clk 0:01:42]}  Nf6 {[%clk 0:00:58]} 25. g5 {[%clk 0:01:30]}  Qc5+ {[%clk 0:00:55]} 26. Kh1 {[%clk 0:01:29]}  hxg5 {[%clk 0:00:50]} 27. R1xf6 {[%clk 0:01:27]} 1-0


[Site "https://www.chess.com"]

[Event "Titled Tuesday Blitz February 14 Early 2023"]
[White "Ardila, Oscar Humberto"]
[Black "Sai Han Thiha"]
[WhiteFideId "4404742"]
[BlackFideId "13012290"]
[WhiteElo "1982"]
[BlackElo "2070"]
[Result "0-1"]
[Round "02"]
[TimeControl "180+2"]
[Date "2023.02.15"]
[WhiteClock "0:00:07"]
[BlackClock "0:00:09"]

1. d4 {[%clk 0:02:59]}  d5 {[%clk 0:03:00]} 2. c4 {[%clk 0:02:59]}  e6 {[%clk 0:03:00]} 3. Nc3 {[%clk 0:02:59]}  c5 {[%clk 0:03:00]} 4. dxc5 {[%clk 0:02:57]}  d4 {[%clk 0:02:38]} 5. Ne4 {[%clk 0:02:52]}  Nc6 {[%clk 0:02:35]} 6. Nf3 {[%clk 0:02:50]}  e5 {[%clk 0:02:25]} 7. Bg5 {[%clk 0:02:37]}  f6 {[%clk 0:02:20]} 8. Bd2 {[%clk 0:02:36]}  a5 {[%clk 0:02:12]} 9. g3 {[%clk 0:02:32]}  Bf5 {[%clk 0:02:12]} 10. Nd6+ {[%clk 0:02:32]}  Bxd6 {[%clk 0:02:11]} 11. cxd6 {[%clk 0:02:32]}  Qxd6 {[%clk 0:02:12]} 12. Bg2 {[%clk 0:02:31]}  Be6 {[%clk 0:01:52]} 13. Qc2 {[%clk 0:02:14]}  Qc5 {[%clk 0:01:25]} 14. b3 {[%clk 0:02:07]}  Nge7 {[%clk 0:01:21]} 15. O-O {[%clk 0:02:07]}  O-O {[%clk 0:01:21]} 16. Nh4 {[%clk 0:02:03]}  f5 {[%clk 0:01:17]} 17. e4 {[%clk 0:01:53]}  f4 {[%clk 0:01:01]} 18. gxf4 {[%clk 0:01:42]}  exf4 {[%clk 0:01:01]} 19. Nf3 {[%clk 0:01:30]}  Qh5 {[%clk 0:00:58]} 20. Qb2 {[%clk 0:01:08]}  Bh3 {[%clk 0:00:40]} 21. Bxh3 {[%clk 0:00:23]}  Qxh3 {[%clk 0:00:41]} 22. Ne1 {[%clk 0:00:22]}  Rf6 {[%clk 0:00:24]} 23. f3 {[%clk 0:00:20]}  Ne5 {[%clk 0:00:18]} 24. Qxd4 {[%clk 0:00:11]}  N7c6 {[%clk 0:00:14]} 25. Qf2 {[%clk 0:00:10]}  Rd8 {[%clk 0:00:12]} 26. Bc3 {[%clk 0:00:10]}  Rfd6 {[%clk 0:00:10]} 27. Ng2 {[%clk 0:00:09]}  g5 {[%clk 0:00:08]} 28. Rae1 {[%clk 0:00:07]}  Rd3 {[%clk 0:00:08]} 29. Bxe5 {[%clk 0:00:07]}  Nxe5 {[%clk 0:00:09]} 30. Qc5 {[%clk 0:00:05]}  Nxf3+ {[%clk 0:00:09]} 31. Rxf3 {[%clk 0:00:05]}  Qxf3 {[%clk 0:00:09]} 32. Qxg5+ {[%clk 0:00:04]}  Kf7 {[%clk 0:00:10]} 33. Qf5+ {[%clk 0:00:05]}  Ke7 {[%clk 0:00:10]} 34. Qe5+ {[%clk 0:00:05]}  Kd7 {[%clk 0:00:11]} 35. Qf5+ {[%clk 0:00:06]}  Kc7 {[%clk 0:00:11]} 36. e5 {[%clk 0:00:06]}  Rd2 {[%clk 0:00:10]} 37. Qxh7+ {[%clk 0:00:06]}  Kb8 {[%clk 0:00:10]} 38. Qg7 {[%clk 0:00:07]}  Qf2+ {[%clk 0:00:10]} 39. Kh1 {[%clk 0:00:07]}  Rd1 {[%clk 0:00:09]} 0-1


[Site "https://www.chess.com"]

[Event "Titled Tuesday Blitz February 14 Early 2023"]
[White "Bashylina, Luisa"]
[Black "Kavutskiy, Konstantin"]
[WhiteFideId "12983292"]
[BlackFideId "2026384"]
[WhiteElo "2103"]
[BlackElo "2414"]
[Result "0-1"]
[Round "02"]
[TimeControl "180+2"]
[Date "2023.02.15"]
[WhiteClock "0:00:42"]
[BlackClock "0:00:11"]

1. e4 {[%clk 0:02:57]}  Nc6 {[%clk 0:02:55]} 2. d4 {[%clk 0:02:57]}  d6 {[%clk 0:02:55]} 3. d5 {[%clk 0:02:53]}  Nb8 {[%clk 0:02:54]} 4. Be3 {[%clk 0:02:52]}  Nf6 {[%clk 0:02:53]} 5. Bd3 {[%clk 0:02:52]}  g6 {[%clk 0:02:53]} 6. c4 {[%clk 0:02:50]}  Bg7 {[%clk 0:02:52]} 7. Nc3 {[%clk 0:02:51]}  O-O {[%clk 0:02:50]} 8. Nge2 {[%clk 0:02:51]}  e6 {[%clk 0:02:45]} 9. O-O {[%clk 0:02:50]}  c6 {[%clk 0:02:41]} 10. dxc6 {[%clk 0:02:43]}  Nxc6 {[%clk 0:02:35]} 11. b3 {[%clk 0:02:24]}  a6 {[%clk 0:02:24]} 12. Qd2 {[%clk 0:02:23]}  Ne5 {[%clk 0:02:12]} 13. f3 {[%clk 0:02:16]}  d5 {[%clk 0:02:00]} 14. cxd5 {[%clk 0:02:08]}  exd5 {[%clk 0:01:59]} 15. Rfd1 {[%clk 0:01:57]}  dxe4 {[%clk 0:01:52]} 16. Nxe4 {[%clk 0:01:53]}  Qxd3 {[%clk 0:01:43]} 17. Qxd3 {[%clk 0:01:41]}  Nxd3 {[%clk 0:01:43]} 18. N4c3 {[%clk 0:01:28]}  Nb4 {[%clk 0:01:34]} 19. Bc5 {[%clk 0:01:28]}  Nfd5 {[%clk 0:01:13]} 20. Nxd5 {[%clk 0:01:05]}  Nxd5 {[%clk 0:01:10]} 21. Bxf8 {[%clk 0:01:05]}  Bxa1 {[%clk 0:00:41]} 22. Ba3 {[%clk 0:01:04]}  Nc3 {[%clk 0:00:31]} 23. Rxa1 {[%clk 0:01:00]}  Nxe2+ {[%clk 0:00:30]} 24. Kf2 {[%clk 0:01:01]}  Nd4 {[%clk 0:00:27]} 25. Rd1 {[%clk 0:00:57]}  Nc6 {[%clk 0:00:26]} 26. Bb2 {[%clk 0:00:53]}  Be6 {[%clk 0:00:25]} 27. g4 {[%clk 0:00:45]}  Rd8 {[%clk 0:00:24]} 28. Re1 {[%clk 0:00:46]}  Rd2+ {[%clk 0:00:23]} 29. Re2 {[%clk 0:00:46]}  Rxe2+ {[%clk 0:00:24]} 30. Kxe2 {[%clk 0:00:47]}  Kf8 {[%clk 0:00:23]} 31. Ke3 {[%clk 0:00:48]}  Ke7 {[%clk 0:00:23]} 32. Ke4 {[%clk 0:00:48]}  Kd6 {[%clk 0:00:23]} 33. Ba3+ {[%clk 0:00:48]}  Kd7 {[%clk 0:00:23]} 34. h4 {[%clk 0:00:49]}  b5 {[%clk 0:00:23]} 35. Bc5 {[%clk 0:00:48]}  a5 {[%clk 0:00:23]} 36. Bb6 {[%clk 0:00:48]}  a4 {[%clk 0:00:23]} 37. bxa4 {[%clk 0:00:49]}  bxa4 {[%clk 0:00:21]} 38. a3 {[%clk 0:00:49]}  Ne7 {[%clk 0:00:20]} 39. Bc5 {[%clk 0:00:49]}  Bd5+ {[%clk 0:00:19]} 40. Ke3 {[%clk 0:00:50]}  Bc6 {[%clk 0:00:18]} 41. f4 {[%clk 0:00:50]}  Ke6 {[%clk 0:00:18]} 42. Kd4 {[%clk 0:00:50]}  Nd5 {[%clk 0:00:18]} 43. Bf8 {[%clk 0:00:49]}  Nxf4 {[%clk 0:00:17]} 44. Bc5 {[%clk 0:00:49]}  Ne2+ {[%clk 0:00:17]} 45. Ke3 {[%clk 0:00:49]}  Nc3 {[%clk 0:00:16]} 46. Kf4 {[%clk 0:00:48]}  Nb5 {[%clk 0:00:16]} 47. Kg5 {[%clk 0:00:48]}  f6+ {[%clk 0:00:15]} 48. Kh6 {[%clk 0:00:48]}  f5 {[%clk 0:00:14]} 49. Kxh7 {[%clk 0:00:47]}  fxg4 {[%clk 0:00:12]} 50. Kxg6 {[%clk 0:00:47]}  g3 {[%clk 0:00:12]} 51. h5 {[%clk 0:00:48]}  Be4+ {[%clk 0:00:12]} 52. Kg7 {[%clk 0:00:47]}  Kd5 {[%clk 0:00:13]} 53. Bb6 {[%clk 0:00:43]}  Nd4 {[%clk 0:00:12]} 54. h6 {[%clk 0:00:42]}  g2 {[%clk 0:00:10]} 55. h7 {[%clk 0:00:41]}  Bxh7 {[%clk 0:00:10]} 56. Kxh7 {[%clk 0:00:42]}  g1=Q {[%clk 0:00:11]} 0-1


[Site "https://www.chess.com"]